[Event "Summer Prague Open A 2020"]
[Site "Prague"]
[Date "2020.08.08"]
[Round "1.17"]
[White "Biastoch, Bennet"]
[Black "Groh, Jiri"]
[Result "1-0"]
[ECO "B39"]
[WhiteElo "2315"]
[BlackElo "1997"]
[Annotator "ChessBase"]
[PlyCount "61"]
[EventDate "2020.08.08"]
[EventCountry "CZE"]
[SourceTitle "playchess.com"]
[Source "ChessBase"]
[SourceQuality "1"]
[TimeControl "40/5400+30:1800+30"]

1. e4 {[%emt 0:00:00]} c5 {[%emt 0:00:00]} 2. Nf3 {[%emt 0:00:00]} Nc6 {[%emt 0:00:00]} 3. d4 {[%emt 0:00:00]} cxd4 {[%emt 0:00:00]} 4. Nxd4 {[%emt 0:00:02]} g6 {[%emt 0:00:13]} 5. c4 {[%emt 0:00:35]} Bg7 {[%emt 0:00:11]} 6. Be3 {[%emt 0:00:16]} Nf6 {[%emt 0:00:22]} 7. Nc3 {[%emt 0:00:46]} Ng4 {[%emt 0:01:49]} 8. Qxg4 {[%emt 0:00:46]} Nxd4 {[%emt 0:04:12]} 9. Qd1 {[%emt 0:00:33]} e5 {[%emt 0:00:49]} 10. Bd3 {[%emt 0:01:39]} d6 {[%emt 0:01:24]} 11. O-O {[%emt 0:02:54]} O-O {[%emt 0:00:40]} 12. Qd2 {[%emt 0:01:20]} f5 {[%emt 0:02:23]} 13. exf5 {[%emt 0:04:07]} Bxf5 {[%emt 0:02:10]} 14. Bxf5 {[%emt 0:20:28]} Rxf5 {[%emt 0:03:50]} 15. Bxd4 {[%emt 0:03:49]} exd4 {[%emt 0:00:18]} 16. Nd5 {[%emt 0:00:26]} b5 {[%emt 0:05:55]} 17. b3 {[%emt 0:03:32]} bxc4 {[%emt 0:02:56]} 18. bxc4 {[%emt 0:00:08]} Rb8 {[%emt 0:01:15]} 19. Rae1 {[%emt 0:06:22]} Re5 {[%emt 0:03:45]} 20. f4 {[%emt 0:06:42]} Rxe1 {[%emt 0:11:32]} 21. Rxe1 {[%emt 0:02:58]} Kh8 22. Qd3 {[%emt 0:12:28]} Qa5 {[%emt 0:23:05]} 23. Re2 {[%emt 0:01:13]} Qa4 {[%emt 0:03:42]} 24. h4 {[%emt 0:10:09]} Rc8 {[%emt 0:04:42]} 25. h5 {[%emt 0:04:13]} gxh5 {[%emt 0:11:50]} 26. Re7 {[%emt 0:06:25]} Rf8 {[%emt 0:11:21]} 27. f5 {[%emt 0:06:45]} Re8 {[%emt 0:03:11]} 28. f6 {[%emt 0:02:59]} Rxe7 {[%emt 0:00:15]} 29. fxe7 {[%emt 0:00:05]} Qd7 {[%emt 0:02:07]} 30. Qe4 {[%emt 0:01:57]} Be5 {[%emt 0:00:02]} 31. Qf3 {[%emt 0:00:15]} 1-0

[Event "Summer Prague Open A 2020"]
[Site "Prague"]
[Date "2020.08.08"]
[Round "1.18"]
[White "Kucera, Tomas"]
[Black "Malassagne, Raphael"]
[Result "0-1"]
[ECO "B14"]
[WhiteElo "1993"]
[BlackElo "2305"]
[Annotator "ChessBase"]
[PlyCount "84"]
[EventDate "2020.08.08"]
[EventCountry "CZE"]
[SourceTitle "playchess.com"]
[Source "ChessBase"]
[SourceQuality "1"]
[TimeControl "40/5400+30:1800+30"]

1. e4 c6 2. d4 d5 3. exd5 cxd5 4. c4 Nf6 5. Nc3 g6 6. Qb3 Bg7 7. cxd5 O-O 8. Be2 Nbd7 9. Bf3 Nb6 10. Nge2 Bg4 11. Bxg4 Nxg4 12. Bf4 Nf6 13. d6 exd6 14. O-O Re8 15. Rfe1 Ne4 16. a4 Nxc3 17. bxc3 Qc7 18. Rab1 Rab8 19. Ng3 Qc6 20. a5 Rxe1+ 21. Rxe1 Nc4 22. h4 Nxa5 23. Qa3 Nc4 24. Qxa7 Qc8 25. Qa2 Ra8 26. Qe2 d5 27. Bg5 Qc6 28. Nf1 Nd6 29. Ne3 Re8 30. Qf3 Ne4 31. Ng4 Re6 32. Ra1 h5 33. Ra8+ Re8 34. Rxe8+ Qxe8 35. Nf6+ Bxf6 36. Bxf6 Qc6 37. Be5 Qxc3 38. Qf4 Qe1+ 39. Kh2 Qxf2 40. Qh6 Qxh4+ 41. Kg1 Qf2+ 42. Kh2 Nf6 0-1

[Event "Summer Prague Open A 2020"]
[Site "Prague"]
[Date "2020.08.08"]
[Round "1.19"]
[White "Pozdnjakov, Viatcheslav"]
[Black "Brozka, Karel"]
[Result "1/2-1/2"]
[ECO "A48"]
[WhiteElo "2300"]
[BlackElo "1991"]
[Annotator "ChessBase"]
[PlyCount "89"]
[EventDate "2020.08.08"]
[EventCountry "CZE"]
[SourceTitle "playchess.com"]
[Source "ChessBase"]
[SourceQuality "1"]
[TimeControl "40/5400+30:1800+30"]

1. d4 Nf6 2. Nf3 g6 3. c4 c5 4. Nc3 cxd4 5. Nxd4 Bg7 6. e4 d6 7. Be2 Nc6 8. Be3 Bd7 9. O-O O-O 10. f3 a5 11. Ndb5 b6 12. Rb1 Na7 13. Nd4 Nc6 14. Qd2 Nxd4 15. Bxd4 Bc6 16. Rbd1 Nd7 17. Bxg7 Kxg7 18. f4 Nc5 19. Qe3 Qc7 20. f5 Nd7 21. Rf3 f6 22. Rh3 g5 23. Qf3 Ne5 24. Qh5 Rh8 25. Qh6+ Kg8 26. Bh5 Be8 27. Nd5 Qc5+ 28. Kh1 Bxh5 29. Rxh5 Ra7 30. Nxe7+ Kf7 31. Rxg5 Kxe7 32. Rg7+ Nf7 33. b3 Qe5 34. Qe3 Rb7 35. h3 Kf8 36. Rg4 Rg8 37. Rh4 h6 38. Rf4 Qc5 39. Qc3 Qe5 40. Qe3 Ke7 41. a4 Qc5 42. Qf3 Rbb8 43. Rd5 Qb4 44. Qe3 Qa3 45. Rf2 1/2-1/2

[Event "Summer Prague Open A 2020"]
[Site "Prague"]
[Date "2020.08.09"]
[Round "3.7"]
[White "Miedema, David"]
[Black "Richter, Philipp"]
[Result "1/2-1/2"]
[ECO "C16"]
[WhiteElo "2382"]
[BlackElo "2127"]
[Annotator "RC"]
[PlyCount "53"]
[EventDate "2020.08.08"]
[EventCountry "CZE"]
[SourceTitle "playchess.com"]
[Source "ChessBase"]
[SourceQuality "1"]
[TimeControl "40/5400+30:1800+30"]

1. e4 {[%emt 0:03:49]} e6 {[%emt 0:00:00]} 2. d4 {[%emt 0:00:04]} d5 {[%emt 0:00:00]} 3. Nc3 {[%emt 0:00:06]} Bb4 {[%emt 0:00:00]} 4. e5 {[%emt 0:00:04]} Ne7 {[%emt 0:00:00]} 5. a3 {[%emt 0:00:02]} Bxc3+ {[%emt 0:00:00]} 6. bxc3 {[%emt 0:00:03]} c5 {[%emt 0:00:00]} 7. h4 {[%emt 0:00:59]} Qc7 {[%emt 0:00:01]} 8. h5 {[%emt 0:00:13]} cxd4 {[%emt 0:00:13]} 9. cxd4 {[%emt 0:00:10]} Qc3+ {[%emt 0:00:06]} 10. Bd2 {[%emt 0:00:03]} Qxd4 {[%emt 0:00:05]} 11. Nf3 {[%emt 0:00:05]} Qe4+ {[%emt 0:00:10]} 12. Be2 {[%emt 0:00:05]} Nf5 {[%emt 0:00:05]} 13. Kf1 {[%emt 0:06:02]} b6 {[%emt 0:00:11]} 14. Bb5+ {[%emt 0:09:21]} Nd7 {[%emt 0:00:08]} 15. Rb1 {[%emt 0:00:58]} a5 {[%emt 0:13:55]} 16. Kg1 {[%emt 0:09:37]} h6 {[%emt 0:09:26]} 17. Bc6 {[%emt 0:07:43]} Ra7 {[%emt 0:04:09]} 18. Rxb6 {[%emt 0:04:38]} O-O {[%emt 0:00:58]} 19. Rb3 {[%emt 0:05:07]} Nxe5 {[%emt 0:06:47]} 20. Nxe5 {[%emt 0:05:36]} Qxe5 {[%emt 0:00:08]} 21. Bb5 {[%emt 0:00:05]} Ba6 {[%emt 0:10:36]} 22. Bxa6 {[%emt 0:04:36]} Rxa6 {[%emt 0:00:11]} 23. g4 {[%emt 0:00:04]} Nd4 {[%emt 0:09:55]} 24. Re3 {[%emt 0:03:11]} Qf6 {[%emt 0:06:34]} 25. c3 {[%emt 0:03:47]} Nc6 {[%emt 0:01:46]} 26. Rg3 {[%emt 0:04:10]} Rb6 {[%emt 0:08:41]} 27. g5 {[%emt 0:08:48]} 1/2-1/2

[Event "Summer Prague Open A 2020"]
[Site "Prague"]
[Date "2020.08.09"]
[Round "3.8"]
[White "Post, Hugo"]
[Black "Hrabusa, Matej"]
[Result "0-1"]
[ECO "B90"]
[WhiteElo "2203"]
[BlackElo "2350"]
[Annotator "ChessBase"]
[PlyCount "82"]
[EventDate "2020.08.08"]
[EventCountry "CZE"]
[SourceTitle "playchess.com"]
[Source "ChessBase"]
[SourceQuality "1"]
[TimeControl "40/5400+30:1800+30"]

1. e4 {[%emt 0:00:00]} c5 {[%emt 0:00:00]} 2. Nf3 {[%emt 0:00:00]} d6 {[%emt 0:00:00]} 3. d4 {[%emt 0:00:00]} cxd4 {[%emt 0:00:04]} 4. Nxd4 {[%emt 0:00:00]} Nf6 {[%emt 0:00:09]} 5. Nc3 {[%emt 0:00:00]} a6 {[%emt 0:00:39]} 6. f3 {[%emt 0:00:20]} e5 {[%emt 0:00:08]} 7. Nb3 {[%emt 0:00:04]} Be6 {[%emt 0:00:16]} 8. Be3 {[%emt 0:00:11]} h5 {[%emt 0:01:16]} 9. Nd5 {[%emt 0:00:46]} Bxd5 {[%emt 0:00:39]} 10. exd5 {[%emt 0:00:07]} Nbd7 {[%emt 0:00:17]} 11. Be2 {[%emt 0:02:07]} g6 {[%emt 0:00:57]} 12. Qd2 {[%emt 0:00:15]} Qc7 {[%emt 0:01:18]} 13. O-O {[%emt 0:01:25]} Nb6 {[%emt 0:07:36]} 14. Bg5 {[%emt 0:23:12]} Nfxd5 {[%emt 0:10:07]} 15. c4 {[%emt 0:01:33]} Ne7 {[%emt 0:01:40]} 16. Rac1 {[%emt 0:02:17]} Bg7 {[%emt 0:17:17]} 17. Rfd1 {[%emt 0:07:00]} Nbc8 {[%emt 0:00:46]} 18. a4 {[%emt 0:18:22]} O-O {[%emt 0:02:50]} 19. a5 {[%emt 0:01:55]} Re8 {[%emt 0:06:57]} 20. Bd3 {[%emt 0:04:21]} b6 {[%emt 0:07:13]} 21. Be4 {[%emt 0:03:45]} Rb8 {[%emt 0:00:30]} 22. Be3 {[%emt 0:01:04]} f5 {[%emt 0:08:22]} 23. Bd5+ {[%emt 0:01:19]} Kh7 {[%emt 0:01:11]} 24. axb6 {[%emt 0:05:25]} Nxb6 {[%emt 0:00:57]} 25. Bf7 {[%emt 0:01:11]} Red8 {[%emt 0:02:38]} 26. Bg5 {[%emt 0:04:31]} Na4 {[%emt 0:03:56]} 27. Qa5 {[%emt 0:04:09]} Qa7+ {[%emt 0:02:29]} 28. c5 {[%emt 0:00:07]} Nxb2 {[%emt 0:01:17]} 29. Rd2 {[%emt 0:00:07]} Nc6 {[%emt 0:00:50]} 30. Qa3 {[%emt 0:02:09]} Qxf7 {[%emt 0:00:54]} 31. Rxb2 {[%emt 0:00:18]} e4 {[%emt 0:05:44]} 32. Rbb1 {[%emt 0:00:10]} Nd4 {[%emt 0:01:42]} 33. Bxd8 {[%emt 0:05:43]} Ne2+ {[%emt 0:00:12]} 34. Kh1 {[%emt 0:00:04]} Nxc1 {[%emt 0:00:09]} 35. Rxc1 {[%emt 0:02:53]} Rxb3 {[%emt 0:02:07]} 36. Qxa6 {[%emt 0:00:14]} exf3 {[%emt 0:03:21]} 37. Qxd6 {[%emt 0:01:01]} Qc4 {[%emt 0:01:26]} 38. Qd1 {[%emt 0:02:59]} fxg2+ {[%emt 0:00:14]} 39. Kg1 {[%emt 0:01:13]} Bd4+ {[%emt 0:00:18]} 40. Kxg2 {[%emt 0:00:25]} Qd5+ {[%emt 0:00:15]} 41. Kf1 {[%emt 0:30:22]} Qh1+ {[%emt 0:30:35]} 0-1

[Event "Summer Prague Open A 2020"]
[Site "Prague"]
[Date "2020.08.09"]
[Round "3.9"]
[White "Ludvik, Tomas"]
[Black "Malassagne, Raphael"]
[Result "1/2-1/2"]
[ECO "D15"]
[WhiteElo "2202"]
[BlackElo "2305"]
[Annotator "ChessBase"]
[PlyCount "64"]
[EventDate "2020.08.08"]
[EventCountry "CZE"]
[SourceTitle "playchess.com"]
[Source "ChessBase"]
[SourceQuality "1"]
[TimeControl "40/5400+30:1800+30"]

1. d4 d5 2. c4 c6 3. Nf3 Nf6 4. Nc3 a6 5. e3 g6 6. Bd3 Bg7 7. O-O O-O 8. h3 Bf5 9. Bxf5 gxf5 10. Qb3 Ra7 11. cxd5 cxd5 12. Bd2 e6 13. Rfc1 Nc6 14. Na4 Ne4 15. Be1 Kh8 16. Nc5 Qe7 17. Rc2 Rg8 18. Qb6 Nxc5 19. Qxc5 Qxc5 20. Rxc5 Bf8 21. Rc2 Bd6 22. Bd2 Kg7 23. Kf1 Kf6 24. Rb1 a5 25. b3 h5 26. a4 Ke7 27. g3 Kd7 28. Ke2 Ra6 29. h4 Rb8 30. Bc3 b5 31. axb5 Rxb5 32. Nd2 a4 1/2-1/2

[Event "Summer Prague Open A 2020"]
[Site "Prague"]
[Date "2020.08.09"]
[Round "3.10"]
[White "Haack, Kevin"]
[Black "Mladek, Richard"]
[Result "1/2-1/2"]
[ECO "A16"]
[WhiteElo "2180"]
[BlackElo "2280"]
[Annotator "ChessBase"]
[PlyCount "66"]
[EventDate "2020.08.08"]
[EventCountry "CZE"]
[SourceTitle "playchess.com"]
[Source "ChessBase"]
[SourceQuality "1"]
[TimeControl "40/5400+30:1800+30"]

1. c4 Nf6 2. Nc3 g6 3. g3 Bg7 4. Bg2 O-O 5. Rb1 c6 6. e4 d6 7. Nge2 e5 8. O-O a5 9. a3 Be6 10. d3 Na6 11. h3 d5 12. exd5 cxd5 13. f4 dxc4 14. fxe5 cxd3 15. exf6 dxe2 16. Nxe2 Qxd1 17. Rxd1 Bxf6 18. Bxb7 Ra7 19. Bf3 Bxh3 20. Bh6 Bg7 21. Bxg7 Kxg7 22. g4 h5 23. gxh5 Bf5 24. Rbc1 Rb8 25. Rd2 Rc7 26. Rxc7 Nxc7 27. Nd4 Bd7 28. hxg6 Kxg6 29. Bc6 Bxc6 30. Nxc6 Rb5 31. Rd7 Ne6 32. Ra7 Rxb2 33. Rxa5 Ra2 1/2-1/2

[Event "Summer Prague Open A 2020"]
[Site "Prague"]
[Date "2020.08.09"]
[Round "3.11"]
[White "Kanakova, Natalie"]
[Black "Cap, Adam"]
[Result "0-1"]
[ECO "A16"]
[WhiteElo "2162"]
[BlackElo "2278"]
[Annotator "ChessBase"]
[PlyCount "102"]
[EventDate "2020.08.08"]
[EventCountry "CZE"]
[SourceTitle "playchess.com"]
[Source "ChessBase"]
[SourceQuality "1"]
[TimeControl "40/5400+30:1800+30"]

1. c4 Nf6 2. Nc3 g6 3. g3 Bg7 4. Bg2 O-O 5. e4 d6 6. Nge2 c5 7. O-O Nc6 8. d3 a6 9. Be3 Rb8 10. a4 Ne8 11. d4 cxd4 12. Nxd4 Nc7 13. a5 Nxd4 14. Bxd4 Bxd4 15. Qxd4 Ne6 16. Qe3 b6 17. f4 bxa5 18. f5 Nc5 19. f6 exf6 20. Nd5 Kg7 21. Rxf6 Be6 22. e5 Nd7 23. Rxe6 fxe6 24. Nf4 Rxf4 25. gxf4 dxe5 26. fxe5 Qc7 27. Qd4 Rb4 28. Rd1 Qc5 29. Bf1 Qxd4+ 30. Rxd4 Nxe5 31. Rd6 Rxb2 32. Bg2 Nxc4 33. Rxa6 Rb6 34. Ra7+ Kh6 35. Bf1 Nd2 36. Be2 Nb3 37. Bc4 Nd2 38. Be2 Nb3 39. Bc4 e5 40. Bg8 Kg5 41. Rxh7 Nd4 42. Bd5 Rb5 43. Be4 Nf5 44. Ra7 Kf4 45. Bd3 Rc5 46. Ra6 e4 47. Be2 Ke3 48. Bf1 Nh4 49. Rb6 Rg5+ 50. Kh1 Kf2 51. Rf6+ Nf5 0-1

[Event "Summer Prague Open A 2020"]
[Site "Prague"]
[Date "2020.08.09"]
[Round "3.12"]
[White "Mirimanian, Hayk"]
[Black "Marakovits, Nico"]
[Result "0-1"]
[ECO "B31"]
[WhiteElo "2268"]
[BlackElo "2105"]
[Annotator "ChessBase"]
[PlyCount "46"]
[EventDate "2020.08.08"]
[EventCountry "CZE"]
[SourceTitle "playchess.com"]
[Source "ChessBase"]
[SourceQuality "1"]
[TimeControl "40/5400+30:1800+30"]

1. e4 {[%emt 0:00:56]} c5 {[%emt 0:00:00]} 2. Nf3 {[%emt 0:00:04]} Nc6 {[%emt 0:00:00]} 3. Bb5 {[%emt 0:00:32]} g6 {[%emt 0:00:00]} 4. Bxc6 {[%emt 0:00:28]} bxc6 {[%emt 0:00:00]} 5. d4 {[%emt 0:04:36]} Bg7 {[%emt 0:00:22]} 6. c3 {[%emt 0:01:36]} cxd4 {[%emt 0:01:29]} 7. cxd4 {[%emt 0:00:06]} Nf6 {[%emt 0:01:25]} 8. e5 {[%emt 0:03:49]} Nd5 {[%emt 0:00:47]} 9. O-O {[%emt 0:00:11]} O-O {[%emt 0:00:31]} 10. Re1 {[%emt 0:04:12]} d6 {[%emt 0:02:21]} 11. Nc3 {[%emt 0:01:31]} Nxc3 {[%emt 0:00:45]} 12. bxc3 {[%emt 0:00:05]} Bg4 {[%emt 0:04:12]} 13. Bf4 {[%emt 0:23:08]} d5 {[%emt 0:06:57]} 14. h3 {[%emt 0:11:06]} Bxf3 {[%emt 0:07:20]} 15. Qxf3 {[%emt 0:00:43]} e6 {[%emt 0:00:13]} 16. Re2 {[%emt 0:18:56]} Rb8 {[%emt 0:02:27]} 17. Rc1 {[%emt 0:01:41]} Qe7 {[%emt 0:02:27]} 18. c4 {[%emt 0:00:44]} Rb4 {[%emt 0:03:22]} 19. Rec2 {[%emt 0:01:20]} Qb7 {[%emt 0:04:39]} 20. cxd5 {[%emt 0:01:56]} cxd5 {[%emt 0:00:13]} 21. Rc7 {[%emt 0:03:20]} Qb6 {[%emt 0:03:49]} 22. Bg5 {[%emt 0:01:30]} Rb1 {[%emt 0:01:56]} 23. Be7 {[%emt 0:00:35]} Qxc7 {[%emt 0:00:39]} 0-1

[Event "Summer Prague Open A 2020"]
[Site "Prague"]
[Date "2020.08.09"]
[Round "3.13"]
[White "Slampa, Jan"]
[Black "Balint, Peter"]
[Result "1-0"]
[ECO "C84"]
[WhiteElo "2264"]
[BlackElo "2105"]
[Annotator "ChessBase"]
[PlyCount "55"]
[EventDate "2020.08.08"]
[EventCountry "CZE"]
[SourceTitle "playchess.com"]
[Source "ChessBase"]
[SourceQuality "1"]
[TimeControl "40/5400+30:1800+30"]

1. e4 e5 2. Nf3 Nc6 3. Bb5 a6 4. Ba4 Nf6 5. O-O Be7 6. d3 b5 7. Bb3 d6 8. a3 O-O 9. Nc3 Bg4 10. Be3 Nd4 11. Bxd4 exd4 12. Nd5 c5 13. h3 Bh5 14. Nf4 Bxf3 15. Qxf3 Nd7 16. Qe2 Kh8 17. Nd5 g5 18. f4 gxf4 19. Rxf4 Bg5 20. Rf5 Ne5 21. Qh5 c4 22. Rxg5 cxb3 23. Qh6 Qxg5 24. Qxg5 Nf3+ 25. gxf3 Rg8 26. Qxg8+ Rxg8+ 27. Kf2 bxc2 28. Rc1 1-0

[Event "Summer Prague Open A 2020"]
[Site "Prague"]
[Date "2020.08.09"]
[Round "3.14"]
[White "Narr, Kevin"]
[Black "Dietz, Florian"]
[Result "0-1"]
[ECO "A48"]
[WhiteElo "2110"]
[BlackElo "2262"]
[Annotator "ChessBase"]
[PlyCount "76"]
[EventDate "2020.08.08"]
[EventCountry "CZE"]
[SourceTitle "playchess.com"]
[Source "ChessBase"]
[SourceQuality "1"]
[TimeControl "40/5400+30:1800+30"]

1. d4 {[%emt 0:21:24]} Nf6 {[%emt 0:00:00]} 2. Nf3 {[%emt 0:00:04]} g6 {[%emt 0:00:00]} 3. e3 {[%emt 0:01:00]} Bg7 {[%emt 0:00:22]} 4. Be2 {[%emt 0:00:59]} O-O {[%emt 0:00:34]} 5. O-O {[%emt 0:00:06]} d6 {[%emt 0:00:10]} 6. c4 {[%emt 0:00:08]} Nbd7 {[%emt 0:00:28]} 7. Nc3 {[%emt 0:00:25]} e5 {[%emt 0:03:40]} 8. Re1 {[%emt 0:00:51]} e4 {[%emt 0:01:27]} 9. Nd2 {[%emt 0:00:04]} Re8 {[%emt 0:00:09]} 10. Qc2 {[%emt 0:00:11]} Qe7 {[%emt 0:00:30]} 11. b4 {[%emt 0:01:16]} Nf8 {[%emt 0:01:03]} 12. a4 {[%emt 0:00:53]} h5 {[%emt 0:01:25]} 13. a5 {[%emt 0:02:30]} a6 {[%emt 0:02:27]} 14. Ra3 {[%emt 0:01:19]} Bf5 {[%emt 0:02:02]} 15. Nd5 {[%emt 0:04:39]} Qd8 {[%emt 0:09:38]} 16. Bb2 {[%emt 0:03:42]} h4 {[%emt 0:01:45]} 17. Nxf6+ {[%emt 0:05:38]} Qxf6 {[%emt 0:00:56]} 18. h3 {[%emt 0:01:09]} Nh7 {[%emt 0:05:57]} 19. b5 {[%emt 0:07:25]} Ng5 {[%emt 0:03:28]} 20. Bf1 {[%emt 0:00:08]} Qe6 {[%emt 0:06:55]} 21. Kh2 {[%emt 0:07:08]} Qd7 {[%emt 0:03:48]} 22. Qa4 {[%emt 0:03:04]} axb5 {[%emt 0:05:50]} 23. cxb5 {[%emt 0:01:34]} d5 {[%emt 0:00:14]} 24. Rc3 {[%emt 0:02:35]} Ra6 {[%emt 0:11:07]} 25. Rec1 {[%emt 0:04:44]} Rf6 {[%emt 0:02:35]} 26. Rxc7 {[%emt 0:01:18]} Qe6 {[%emt 0:02:07]} 27. b6 {[%emt 0:08:18]} Rb8 {[%emt 0:10:55]} 28. Ba3 {[%emt 0:02:53]} Bxh3 {[%emt 0:01:43]} 29. Kg1 {[%emt 0:12:50]} Qg4 {[%emt 0:03:55]} 30. Qd1 {[%emt 0:01:09]} Nf3+ {[%emt 0:01:04]} 31. Kh1 {[%emt 0:00:01]} Rf5 {[%emt 0:08:14]} 32. Be7 {[%emt 0:02:56]} f6 {[%emt 0:02:09]} 33. Bd6 {[%emt 0:00:06]} Rg5 {[%emt 0:01:34]} 34. g3 {[%emt 0:03:15]} hxg3 {[%emt 0:00:31]} 35. Bxg3 {[%emt 0:00:55]} Bxf1 {[%emt 0:00:19]} 36. Nxf1 {[%emt 0:00:51]} Rh5+ {[%emt 0:00:54]} 37. Nh2 {[%emt 0:00:15]} Qxg3 {[%emt 0:00:40]} 38. Rxg7+ {[%emt 0:00:46]} Kxg7 {[%emt 0:00:27]} 0-1

[Event "Summer Prague Open A 2020"]
[Site "Prague"]
[Date "2020.08.09"]
[Round "3.15"]
[White "Pronk, Sven"]
[Black "Kasioumis, Vasilios"]
[Result "0-1"]
[ECO "A45"]
[WhiteElo "2062"]
[BlackElo "2277"]
[Annotator "ChessBase"]
[PlyCount "66"]
[EventDate "2020.08.08"]
[EventCountry "CZE"]
[SourceTitle "playchess.com"]
[Source "ChessBase"]
[SourceQuality "1"]
[TimeControl "40/5400+30:1800+30"]

1. d4 {[%emt 0:00:00]} Nf6 {[%emt 0:00:00]} 2. Bg5 {[%emt 0:00:00]} d5 {[%emt 0:00:00]} 3. e3 {[%emt 0:00:19]} c5 {[%emt 0:00:00]} 4. Bxf6 {[%emt 0:00:39]} gxf6 {[%emt 0:00:00]} 5. dxc5 {[%emt 0:00:08]} e6 {[%emt 0:00:01]} 6. c4 {[%emt 0:00:11]} dxc4 {[%emt 0:00:35]} 7. Nd2 {[%emt 0:00:27]} c3 {[%emt 0:05:32]} 8. bxc3 {[%emt 0:02:16]} Bxc5 {[%emt 0:00:14]} 9. Ngf3 {[%emt 0:02:52]} Nc6 {[%emt 0:06:27]} 10. Bb5 {[%emt 0:09:38]} a6 {[%emt 0:07:50]} 11. Bc4 Be7 {[%emt 0:11:09]} 12. Qe2 {[%emt 0:14:43]} Bd7 {[%emt 0:01:43]} 13. Nb3 {[%emt 0:08:25]} Rc8 {[%emt 0:06:56]} 14. O-O {[%emt 0:02:55]} Na5 {[%emt 0:00:03]} 15. Nxa5 {[%emt 0:05:34]} Qxa5 {[%emt 0:01:48]} 16. Rfd1 {[%emt 0:04:32]} b5 {[%emt 0:02:00]} 17. Bb3 Rxc3 18. Nd4 {[%emt 0:01:10]} Qc7 {[%emt 0:03:53]} 19. Qg4 {[%emt 0:11:28]} Kf8 {[%emt 0:08:42]} 20. Qh5 {[%emt 0:02:32]} h6 {[%emt 0:00:37]} 21. Ne2 {[%emt 0:07:49]} Rc5 {[%emt 0:00:48]} 22. Rac1 {[%emt 0:00:06]} Be8 {[%emt 0:13:23]} 23. Rxc5 {[%emt 0:07:06]} Qxc5 {[%emt 0:00:13]} 24. Qxc5 {[%emt 0:00:48]} Bxc5 {[%emt 0:00:06]} 25. Rd8 {[%emt 0:00:41]} a5 {[%emt 0:03:36]} 26. Nf4 {[%emt 0:04:06]} Ke7 {[%emt 0:01:04]} 27. Rc8 {[%emt 0:03:40]} Bd6 {[%emt 0:00:56]} 28. a4 {[%emt 0:09:27]} bxa4 {[%emt 0:04:22]} 29. Bxa4 {[%emt 0:00:06]} Rf8 {[%emt 0:00:07]} 30. Bxe8 {[%emt 0:02:23]} Rxe8 {[%emt 0:00:15]} 31. Rc4 {[%emt 0:00:26]} Bxf4 {[%emt 0:01:56]} 32. exf4 {[%emt 0:00:40]} Ra8 {[%emt 0:01:28]} 33. Rc7+ {[%emt 0:00:38]} Kd6 {[%emt 0:00:33]} 0-1

[Event "Summer Prague Open A 2020"]
[Site "Prague"]
[Date "2020.08.09"]
[Round "3.16"]
[White "Svanda, Ondrej"]
[Black "Nehyba, Martin"]
[Result "1-0"]
[ECO "A20"]
[WhiteElo "2238"]
[BlackElo "2060"]
[Annotator "ChessBase"]
[PlyCount "89"]
[EventDate "2020.08.08"]
[EventCountry "CZE"]
[SourceTitle "playchess.com"]
[Source "ChessBase"]
[SourceQuality "1"]
[TimeControl "40/5400+30:1800+30"]

1. c4 {[%emt 0:00:00]} e5 {[%emt 0:00:44]} 2. g3 {[%emt 0:00:00]} Nf6 {[%emt 0:00:06]} 3. Bg2 {[%emt 0:00:00]} d5 {[%emt 0:00:08]} 4. cxd5 {[%emt 0:02:13]} Nxd5 {[%emt 0:00:09]} 5. Nf3 {[%emt 0:00:03]} Nc6 {[%emt 0:00:30]} 6. d3 {[%emt 0:02:45]} Be7 {[%emt 0:00:33]} 7. O-O {[%emt 0:00:06]} O-O {[%emt 0:00:06]} 8. a3 {[%emt 0:01:36]} a5 9. Nc3 {[%emt 0:01:02]} Be6 {[%emt 0:04:02]} 10. Bd2 {[%emt 0:03:07]} Rb8 {[%emt 0:07:25]} 11. Rc1 {[%emt 0:00:35]} h6 {[%emt 0:01:59]} 12. Na4 {[%emt 0:01:41]} f6 {[%emt 0:24:19]} 13. Nc5 {[%emt 0:07:31]} Bxc5 {[%emt 0:00:08]} 14. Rxc5 {[%emt 0:00:07]} Qd6 {[%emt 0:00:18]} 15. Qc2 {[%emt 0:12:42]} Nde7 {[%emt 0:02:59]} 16. Rc1 {[%emt 0:04:30]} Rfc8 {[%emt 0:09:31]} 17. b4 {[%emt 0:17:20]} axb4 {[%emt 0:05:56]} 18. axb4 {[%emt 0:00:02]} Nd5 {[%emt 0:02:09]} 19. Qb1 {[%emt 0:10:18]} Nce7 {[%emt 0:04:51]} 20. e4 {[%emt 0:02:58]} Nb6 {[%emt 0:00:10]} 21. d4 {[%emt 0:00:02]} Nd7 {[%emt 0:01:35]} 22. d5 {[%emt 0:06:48]} Bg4 {[%emt 0:11:37]} 23. R5c3 {[%emt 0:06:22]} c6 {[%emt 0:00:41]} 24. dxc6 {[%emt 0:11:48]} Nxc6 {[%emt 0:02:51]} 25. Be3 {[%emt 0:04:14]} Nf8 {[%emt 0:01:27]} 26. h3 {[%emt 0:01:21]} Bxf3 {[%emt 0:05:53]} 27. Bxf3 {[%emt 0:00:01]} Rd8 {[%emt 0:00:01]} 28. Bc5 {[%emt 0:00:37]} Qe6 {[%emt 0:00:28]} 29. Bg4 {[%emt 0:00:45]} Qf7 {[%emt 0:00:17]} 30. b5 {[%emt 0:01:08]} Nd4 {[%emt 0:02:06]} 31. Bxd4 Rxd4 {[%emt 0:00:48]} 32. Rc7 {[%emt 0:00:26]} Qe8 {[%emt 0:01:20]} 33. Qb3+ {[%emt 0:00:34]} Kh8 {[%emt 0:00:17]} 34. Qf7 {[%emt 0:02:26]} Qxf7 {[%emt 0:04:23]} 35. Rxf7 {[%emt 0:00:01]} Nh7 {[%emt 0:01:57]} 36. Rcc7 {[%emt 0:00:50]} Rg8 {[%emt 0:00:23]} 37. Rfd7 {[%emt 0:00:44]} Ng5 {[%emt 0:04:21]} 38. Rxb7 {[%emt 0:01:06]} Nxe4 {[%emt 0:00:31]} 39. Rxd4 {[%emt 0:00:43]} exd4 {[%emt 0:00:05]} 40. Rd7 {[%emt 0:00:55]} Rb8 {[%emt 0:00:29]} 41. Bf5 {[%emt 0:05:58]} Nd2 {[%emt 0:01:59]} 42. b6 {[%emt 0:01:33]} Nf3+ {[%emt 0:05:24]} 43. Kg2 {[%emt 0:05:30]} Ne5 {[%emt 0:00:06]} 44. Rc7 {[%emt 0:00:03]} g6 {[%emt 0:04:47]} 45. b7 {[%emt 0:00:05]} 1-0